[Event "-chT Youth Countries 2019"]
[Site "Wuerzburg"]
[Date "2019.10.03"]
[Round "3.3"]
[White "Musiolik, David"]
[Black "Schmekel, Florian"]
[Result "0-1"]
[ECO "B34"]
[WhiteElo "2195"]
[BlackElo "2102"]
[Annotator "NA"]
[PlyCount "88"]
[EventDate "2019.10.02"]
[EventType "team-tourn"]
[EventRounds "7"]
[EventCountry "GER"]
[SourceTitle "playchess.com"]
[Source "ChessBase"]
[SourceQuality "1"]
[WhiteTeam "Rheinland-Pfalz"]
[BlackTeam "Mecklenburg-Vorpommern"]
[TimeControl "40/5400+30:1800+30"]

1. e4 {[%emt 0:00:00]} c5 {[%emt 0:00:00]} 2. Nf3 {[%emt 0:00:00]} Nc6 {[%emt 0:00:00]} 3. d4 {[%emt 0:00:00]} cxd4 {[%emt 0:00:00]} 4. Nxd4 {[%emt 0:00:00]} g6 {[%emt 0:00:00]} 5. Nc3 {[%emt 0:00:42]} Bg7 {[%emt 0:00:00]} 6. Be3 {[%emt 0:00:15]} Nf6 {[%emt 0:00:10]} 7. Be2 {[%emt 0:00:14]} O-O {[%emt 0:00:14]} 8. Nb3 {[%emt 0:00:25]} d6 {[%emt 0:00:35]} 9. f4 {[%emt 0:00:54]} a5 {[%emt 0:01:33]} 10. a4 {[%emt 0:01:50]} Bd7 {[%emt 0:03:17]} 11. Bf3 {[%emt 0:05:50]} Qc8 {[%emt 0:12:02]} 12. Nd5 {[%emt 0:14:17]} Nxd5 {[%emt 0:19:55]} 13. exd5 {[%emt 0:00:16]} Nb4 {[%emt 0:14:56]} 14. c3 {[%emt 0:04:48]} Bxc3+ {[%emt 0:05:21]} 15. bxc3 {[%emt 0:03:39]} Qxc3+ {[%emt 0:00:07]} 16. Ke2 {[%emt 0:02:20]} Qc4+ {[%emt 0:19:06]} 17. Kf2 {[%emt 0:03:19]} Nd3+ {[%emt 0:01:39]} 18. Kg1 {[%emt 0:05:19]} Nb2 {[%emt 0:06:52]} 19. Qd4 {[%emt 0:07:16]} Qxb3 {[%emt 0:05:10]} 20. Rb1 {[%emt 0:00:51]} Qxa4 {[%emt 0:01:45]} 21. Qxb2 {[%emt 0:00:47]} b5 {[%emt 0:00:43]} 22. Ra1 {[%emt 0:07:08]} Qc4 {[%emt 0:01:09]} 23. Kf2 {[%emt 0:00:49]} b4 {[%emt 0:01:43]} 24. Qd4 {[%emt 0:07:03]} Qxd4 {[%emt 0:01:47]} 25. Bxd4 {[%emt 0:00:03]} a4 {[%emt 0:01:06]} 26. Rhc1 {[%emt 0:02:22]} Rfb8 {[%emt 0:01:03]} 27. Rc7 {[%emt 0:01:57]} Bf5 {[%emt 0:01:50]} 28. Ra7 {[%emt 0:03:51]} Rxa7 {[%emt 0:00:51]} 29. Bxa7 {[%emt 0:00:02]} Ra8 {[%emt 0:00:06]} 30. Bd4 {[%emt 0:02:10]} Bc2 {[%emt 0:00:26]} 31. Ke3 {[%emt 0:04:31]} a3 {[%emt 0:00:35]} 32. Kd2 {[%emt 0:00:47]} b3 {[%emt 0:00:18]} 33. Bd1 {[%emt 0:01:00]} Bxd1 {[%emt 0:00:15]} 34. Rxd1 {[%emt 0:00:59]} Ra4 {[%emt 0:00:43]} 35. Kc3 {[%emt 0:04:26]} a2 {[%emt 0:00:10]} 36. Kb2 {[%emt 0:02:53]} a1=Q+ {[%emt 0:00:14]} 37. Rxa1 {[%emt 0:00:04]} Rxd4 {[%emt 0:00:05]} 38. Kxb3 {[%emt 0:00:03]} Rxf4 {[%emt 0:00:52]} 39. Re1 {[%emt 0:01:39]} Kf8 {[%emt 0:00:16]} 40. Kc3 {[%emt 0:00:19]} Rf2 {[%emt 0:00:28]} 41. Rg1 {[%emt 0:30:06]} Re2 {[%emt 0:30:53]} 42. Kd3 {[%emt 0:00:31]} Re5 {[%emt 0:00:00]} 43. Kd4 {[%emt 0:00:00]} f5 {[%emt 0:00:00]} 44. h3 {[%emt 0:00:00]} h5 {[%emt 0:00:00] normal} 0-1

[Event "-chT Youth Countries 2019"]
[Site "Wuerzburg"]
[Date "2019.10.03"]
[Round "3.3"]
[White "Stelmaszyk, Nico"]
[Black "Sulayev, Daniel"]
[Result "1/2-1/2"]
[ECO "B30"]
[WhiteElo "2190"]
[BlackElo "2149"]
[Annotator "NA"]
[PlyCount "109"]
[EventDate "2019.10.02"]
[EventType "team-tourn"]
[EventRounds "7"]
[EventCountry "GER"]
[SourceTitle "playchess.com"]
[Source "ChessBase"]
[SourceQuality "1"]
[WhiteTeam "Niedersachsen"]
[BlackTeam "Berlin"]
[TimeControl "40/5400+30:1800+30"]

1. e4 {[%emt 0:00:00]} c5 {[%emt 0:00:00]} 2. Nf3 {[%emt 0:00:00]} Nc6 {[%emt 0:00:00]} 3. c3 {[%emt 0:00:00]} Nf6 {[%emt 0:00:07]} 4. e5 {[%emt 0:00:00]} Nd5 {[%emt 0:00:07]} 5. d4 {[%emt 0:00:00]} cxd4 {[%emt 0:00:15]} 6. Bc4 {[%emt 0:00:00]} Nb6 {[%emt 0:00:12]} 7. Bb3 {[%emt 0:00:05]} d6 {[%emt 0:00:23]} 8. exd6 {[%emt 0:00:06]} Qxd6 {[%emt 0:00:15]} 9. Na3 {[%emt 0:00:07]} Be6 {[%emt 0:12:23]} 10. Nb5 {[%emt 0:00:21]} Qd7 {[%emt 0:00:16]} 11. Bxe6 {[%emt 0:00:14]} Qxe6+ {[%emt 0:00:08]} 12. Be3 {[%emt 0:00:14]} Qd7 {[%emt 0:17:04]} 13. Nbxd4 {[%emt 0:05:09]} e6 {[%emt 0:03:41]} 14. Qe2 {[%emt 0:19:12]} Be7 {[%emt 0:19:18]} 15. Rd1 {[%emt 0:04:13]} Nd5 {[%emt 0:02:08]} 16. O-O {[%emt 0:12:57]} O-O {[%emt 0:02:25]} 17. Bg5 {[%emt 0:09:51]} Nxd4 {[%emt 0:10:11]} 18. Rxd4 {[%emt 0:00:18]} Bxg5 {[%emt 0:00:13]} 19. Nxg5 {[%emt 0:00:08]} h6 {[%emt 0:02:31]} 20. c4 {[%emt 0:07:25]} hxg5 {[%emt 0:00:18]} 21. cxd5 {[%emt 0:00:05]} exd5 {[%emt 0:00:39]} 22. Qd2 {[%emt 0:02:39]} Rad8 {[%emt 0:05:14]} 23. Qxg5 {[%emt 0:01:23]} Rfe8 {[%emt 0:00:16]} 24. Rfd1 {[%emt 0:02:20]} Re6 {[%emt 0:02:17]} 25. Rxd5 {[%emt 0:11:04]} Qxd5 {[%emt 0:01:25]} 26. Qxd8+ {[%emt 0:00:10]} Qxd8 {[%emt 0:00:05]} 27. Rxd8+ {[%emt 0:00:06]} Kh7 {[%emt 0:00:09]} 28. Kf1 {[%emt 0:00:37]} Kg6 {[%emt 0:00:33]} 29. Rd7 {[%emt 0:01:09]} Rb6 {[%emt 0:00:08]} 30. b3 {[%emt 0:00:09]} a5 {[%emt 0:02:17]} 31. Rd4 {[%emt 0:04:17]} Rc6 {[%emt 0:02:18]} 32. Ke2 {[%emt 0:00:14]} Rc2+ {[%emt 0:01:38]} 33. Rd2 {[%emt 0:00:06]} Rc1 {[%emt 0:00:06]} 34. Kf3 {[%emt 0:00:48]} a4 {[%emt 0:01:36]} 35. Kg4 {[%emt 0:06:36]} Rb1 {[%emt 0:02:26]} 36. bxa4 {[%emt 0:03:21]} Rb4+ {[%emt 0:00:05]} 37. f4 {[%emt 0:00:17]} Rxa4 {[%emt 0:00:27]} 38. Rb2 {[%emt 0:00:26]} b5 {[%emt 0:02:31]} 39. g3 {[%emt 0:03:20]} Ra3 {[%emt 0:01:11]} 40. Kh4 {[%emt 0:05:28]} Ra4 {[%emt 0:01:33]} 41. Kh3 {[%emt 0:32:17]} Ra3 {[%emt 0:31:01]} 42. Kg2 {[%emt 0:00:13]} f6 {[%emt 0:05:07]} 43. Kf2 {[%emt 0:00:40]} b4 {[%emt 0:02:55]} 44. Ke2 {[%emt 0:02:56]} Kf5 {[%emt 0:00:14]} 45. Kd2 {[%emt 0:00:00]} Kg4 {[%emt 0:00:00]} 46. Kc1 {[%emt 0:00:00]} Kh3 {[%emt 0:00:00]} 47. Kb1 {[%emt 0:00:00]} g5 {[%emt 0:00:00]} 48. Rxb4 {[%emt 0:00:00]} Kxh2 {[%emt 0:00:00]} 49. fxg5 {[%emt 0:00:00]} fxg5 {[%emt 0:00:00]} 50. g4 {[%emt 0:00:00]} Kh3 {[%emt 0:00:00]} 51. Kb2 {[%emt 0:00:00]} Rf3 {[%emt 0:00:00]} 52. a4 {[%emt 0:00:00]} Rf4 {[%emt 0:00:00]} 53. Kc3 {[%emt 0:00:00]} Kxg4 {[%emt 0:00:00]} 54. a5 {[%emt 0:00:00]} Kg3 {[%emt 0:00:00]} 55. Rxf4 {[%emt 0:00:00] normal} 1/2-1/2

[Event "-chT Youth Countries 2019"]
[Site "Wuerzburg"]
[Date "2019.10.03"]
[Round "3.3"]
[White "Dahl, Christoph"]
[Black "Kololli, Martin"]
[Result "1-0"]
[ECO "C45"]
[WhiteElo "2178"]
[BlackElo "2310"]
[Annotator "NA"]
[PlyCount "112"]
[EventDate "2019.10.02"]
[EventType "team-tourn"]
[EventRounds "7"]
[EventCountry "GER"]
[SourceTitle "playchess.com"]
[Source "ChessBase"]
[SourceQuality "1"]
[WhiteTeam "Sachsen"]
[BlackTeam "Schleswig-Holstein"]
[TimeControl "40/5400+30:1800+30"]

1. e4 {[%emt 0:00:00]} e5 {[%emt 0:00:00]} 2. Nf3 {[%emt 0:00:00]} Nc6 {[%emt 0:00:00]} 3. d4 {[%emt 0:00:00]} exd4 {[%emt 0:00:00]} 4. Nxd4 {[%emt 0:00:15]} Bc5 {[%emt 0:00:00]} 5. Be3 {[%emt 0:00:35]} Qf6 {[%emt 0:00:31]} 6. c3 {[%emt 0:00:21]} Nge7 {[%emt 0:00:29]} 7. Bc4 {[%emt 0:00:53]} Ne5 {[%emt 0:00:17]} 8. Be2 {[%emt 0:00:27]} Qg6 {[%emt 0:06:13]} 9. O-O {[%emt 0:01:54]} O-O {[%emt 0:22:39]} 10. f4 {[%emt 0:33:54]} Qxe4 {[%emt 0:07:11]} 11. Bf2 {[%emt 0:03:04]} Qxf4 {[%emt 0:13:29]} 12. Nb5 {[%emt 0:02:49]} Be3 {[%emt 0:03:27]} 13. Nxc7 {[%emt 0:02:39]} Nf3+ {[%emt 0:05:46]} 14. Bxf3 {[%emt 0:00:13]} Bxf2+ {[%emt 0:00:07]} 15. Rxf2 {[%emt 0:00:04]} Qxc7 {[%emt 0:00:06]} 16. Na3 {[%emt 0:02:26]} a6 {[%emt 0:03:53]} 17. Qd3 {[%emt 0:03:30]} d5 {[%emt 0:03:16]} 18. Re1 {[%emt 0:01:54]} Bf5 {[%emt 0:03:35]} 19. Rxe7 {[%emt 0:01:57]} Qxe7 {[%emt 0:00:14]} 20. Qxf5 {[%emt 0:00:02]} d4 {[%emt 0:05:02]} 21. cxd4 {[%emt 0:01:10]} Qe1+ {[%emt 0:00:27]} 22. Rf1 {[%emt 0:00:01]} Qe3+ {[%emt 0:00:07]} 23. Kh1 {[%emt 0:00:43]} Qxd4 {[%emt 0:00:41]} 24. Bd5 {[%emt 0:12:59]} Qxb2 {[%emt 0:02:36]} 25. Nc4 Qf6 {[%emt 0:03:08]} 26. Qxf6 {[%emt 0:02:31]} gxf6 {[%emt 0:00:06]} 27. h3 {[%emt 0:04:43]} Rac8 {[%emt 0:01:23]} 28. Nd6 {[%emt 0:02:24]} Rcd8 {[%emt 0:02:04]} 29. Ne4 {[%emt 0:00:10]} b5 {[%emt 0:02:32]} 30. Nxf6+ {[%emt 0:04:10]} Kh8 {[%emt 0:01:39]} 31. Rf5 {[%emt 0:01:31]} Rd6 {[%emt 0:03:45]} 32. g4 {[%emt 0:01:52]} Rc8 {[%emt 0:04:34]} 33. g5 {[%emt 0:00:59]} h6 {[%emt 0:02:16]} 34. h4 {[%emt 0:01:09]} hxg5 {[%emt 0:00:56]} 35. hxg5 {[%emt 0:00:01]} Kg7 {[%emt 0:01:52]} 36. Kg2 {[%emt 0:03:17]} Kg6 {[%emt 0:02:13]} 37. Be4 {[%emt 0:01:57]} Kg7 {[%emt 0:01:11]} 38. Nh5+ {[%emt 0:00:49]} Kf8 {[%emt 0:00:34]} 39. Bd5 {[%emt 0:00:08]} Rc7 {[%emt 0:00:22]} 40. Nf6 {[%emt 0:01:08]} Re7 {[%emt 0:00:45]} 41. Kf3 {[%emt 0:30:50]} Kg7 {[%emt 0:08:52]} 42. Kg4 {[%emt 0:00:00]} Rb6 {[%emt 0:02:02]} 43. Rf1 {[%emt 0:00:00]} a5 {[%emt 0:07:23]} 44. Kf5 {[%emt 0:00:00]} Re2 {[%emt 0:01:09]} 45. Rh1 {[%emt 0:00:00]} Rf2+ {[%emt 0:00:39]} 46. Ke5 {[%emt 0:00:00]} Re2+ {[%emt 0:01:06]} 47. Be4 {[%emt 0:00:00]} Re6+ {[%emt 0:00:28]} 48. Kf5 {[%emt 0:00:00]} Rf2+ {[%emt 0:05:48]} 49. Kg4 {[%emt 0:00:00]} Rxe4+ {[%emt 0:02:43]} 50. Nxe4 {[%emt 0:00:00]} Rxa2 {[%emt 0:00:12]} 51. Rf1 {[%emt 0:00:00]} Ra4 {[%emt 0:01:04]} 52. Kf5 {[%emt 0:00:00]} Rd4 {[%emt 0:02:05]} 53. Ke5 {[%emt 0:00:00]} Rd7 {[%emt 0:00:07]} 54. Rc1 {[%emt 0:00:00]} b4 {[%emt 0:01:40]} 55. Rc8 {[%emt 0:00:00]} Rd1 {[%emt 0:00:19] normal} 56. Rb8 {[%emt 0:00:51]} Rb1 {[%emt 0:00:53] normal} 1-0

[Event "-chT Youth Countries 2019"]
[Site "Wuerzburg"]
[Date "2019.10.03"]
[Round "3.3"]
[White "Gallasch, Jonas"]
[Black "Pallas, Sebastian"]
[Result "0-1"]
[ECO "A50"]
[WhiteElo "2099"]
[BlackElo "2291"]
[Annotator "NA"]
[PlyCount "104"]
[EventDate "2019.10.02"]
[EventType "team-tourn"]
[EventRounds "7"]
[EventCountry "GER"]
[SourceTitle "playchess.com"]
[Source "ChessBase"]
[SourceQuality "1"]
[WhiteTeam "Nordrhein-Westfalen"]
[BlackTeam "Sachsen-Anhalt"]
[TimeControl "40/5400+30:1800+30"]

1. d4 {[%emt 0:00:00]} Nf6 {[%emt 0:00:00]} 2. c4 {[%emt 0:00:00]} g6 {[%emt 0:00:12]} 3. h4 {[%emt 0:00:00]} h6 {[%emt 0:08:48]} 4. Nc3 {[%emt 0:05:09]} d5 {[%emt 0:00:09]} 5. cxd5 {[%emt 0:00:52]} Nxd5 {[%emt 0:00:09]} 6. e4 {[%emt 0:00:44]} Nxc3 {[%emt 0:00:08]} 7. bxc3 {[%emt 0:00:06]} Bg7 {[%emt 0:00:12]} 8. Bc4 {[%emt 0:00:34]} c5 {[%emt 0:02:18]} 9. Ne2 {[%emt 0:00:18]} Nc6 {[%emt 0:01:38]} 10. Be3 {[%emt 0:02:32]} Qa5 {[%emt 0:12:11]} 11. O-O {[%emt 0:05:23]} O-O {[%emt 0:01:02]} 12. Rb1 {[%emt 0:09:35]} a6 {[%emt 0:11:15]} 13. Bd5 {[%emt 0:04:46]} cxd4 {[%emt 0:08:30]} 14. cxd4 {[%emt 0:00:18]} e6 {[%emt 0:00:34]} 15. Bxc6 {[%emt 0:07:47]} bxc6 {[%emt 0:00:06]} 16. Qc1 {[%emt 0:00:05]} e5 {[%emt 0:16:50]} 17. Qxc6 {[%emt 0:09:29]} Bg4 {[%emt 0:00:58]} 18. f3 {[%emt 0:02:23]} Qxa2 {[%emt 0:01:36]} 19. Rbe1 {[%emt 0:10:15]} Rac8 {[%emt 0:03:46]} 20. Qb6 {[%emt 0:00:39]} Bd7 {[%emt 0:08:50]} 21. d5 {[%emt 0:03:41]} Bb5 {[%emt 0:01:06]} 22. Rf2 {[%emt 0:01:14]} Rb8 {[%emt 0:01:08]} 23. Qa7 {[%emt 0:01:20]} Ra8 {[%emt 0:01:58]} 24. Qe7 {[%emt 0:01:55]} Rfe8 {[%emt 0:00:51]} 25. Qb4 {[%emt 0:01:42]} Bf8 {[%emt 0:00:07]} 26. Qb1 {[%emt 0:01:46]} Qxb1 {[%emt 0:01:53]} 27. Rxb1 {[%emt 0:00:05]} f5 {[%emt 0:00:28]} 28. g3 {[%emt 0:08:34]} fxe4 {[%emt 0:01:10]} 29. fxe4 {[%emt 0:00:29]} Bd3 {[%emt 0:00:14]} 30. Rb6 {[%emt 0:00:12]} Bxe4 {[%emt 0:00:30]} 31. Nc3 {[%emt 0:00:13]} Bd3 {[%emt 0:00:41]} 32. Rd2 {[%emt 0:00:27]} e4 {[%emt 0:00:11]} 33. Rxg6+ {[%emt 0:00:39]} Kh7 {[%emt 0:00:04]} 34. Rb6 {[%emt 0:00:37]} Bg7 {[%emt 0:01:08]} 35. Na4 {[%emt 0:04:27]} Rf8 {[%emt 0:07:57]} 36. Rf2 {[%emt 0:06:50]} Rxf2 {[%emt 0:05:19]} 37. Bxf2 {[%emt 0:00:08]} Rd8 {[%emt 0:00:18]} 38. d6 {[%emt 0:01:20]} Be5 {[%emt 0:00:59]} 39. Rb7+ {[%emt 0:00:43]} Kg8 {[%emt 0:00:59]} 40. d7 {[%emt 0:00:36]} Bb5 {[%emt 0:00:08]} 41. Nc5 {[%emt 0:31:25]} Kf7 {[%emt 0:17:11]} 42. Kh2 {[%emt 0:00:00]} Ke7 {[%emt 0:01:58]} 43. Be3 {[%emt 0:00:00]} Kd6 {[%emt 0:04:36]} 44. Nxe4+ {[%emt 0:00:00]} Kd5 {[%emt 0:00:20]} 45. Nc5 {[%emt 0:00:00]} Bd6 {[%emt 0:02:10]} 46. Nb3 {[%emt 0:00:00]} h5 {[%emt 0:02:17]} 47. Nd4 {[%emt 0:00:50]} Rxd7 {[%emt 0:00:46]} 48. Rxd7 {[%emt 0:04:35]} Bxd7 {[%emt 0:00:05]} 49. Kg2 {[%emt 0:04:34]} Ke4 {[%emt 0:02:31]} 50. Bf2 {[%emt 0:00:52]} a5 {[%emt 0:00:58]} 51. Nb3 {[%emt 0:00:19]} a4 {[%emt 0:02:12]} 52. Nc5+ {[%emt 0:00:20]} Bxc5 {normal} 0-1

[Event "-chT Youth Countries 2019"]
[Site "Wuerzburg"]
[Date "2019.10.03"]
[Round "3.3"]
[White "Popist, Florian"]
[Black "Goldbeck, Lars"]
[Result "1-0"]
[ECO "B90"]
[WhiteElo "2019"]
[BlackElo "2203"]
[Annotator "NA"]
[PlyCount "117"]
[EventDate "2019.10.02"]
[EventType "team-tourn"]
[EventRounds "7"]
[EventCountry "GER"]
[SourceTitle "playchess.com"]
[Source "ChessBase"]
[SourceQuality "1"]
[WhiteTeam "Hamburg/Schleswig-Holstein"]
[BlackTeam "Bayern 1"]
[TimeControl "40/5400+30:1800+30"]

1. e4 {[%emt 0:00:00]} c5 {[%emt 0:00:00]} 2. Nf3 {[%emt 0:00:00]} d6 {[%emt 0:00:00]} 3. d4 {[%emt 0:00:00]} cxd4 {[%emt 0:00:00]} 4. Nxd4 {[%emt 0:00:00]} Nf6 {[%emt 0:00:00]} 5. Nc3 {[%emt 0:00:00]} a6 {[%emt 0:00:00]} 6. Be3 {[%emt 0:00:07]} e5 {[%emt 0:00:00]} 7. Nb3 {[%emt 0:00:05]} Be6 {[%emt 0:00:00]} 8. f3 {[%emt 0:00:09]} h5 {[%emt 0:00:01]} 9. Qd2 {[%emt 0:01:15]} Nbd7 {[%emt 0:01:02]} 10. O-O-O {[%emt 0:04:15]} Be7 {[%emt 0:02:09]} 11. Kb1 {[%emt 0:01:16]} Qc7 {[%emt 0:00:51]} 12. f4 {[%emt 0:03:31]} b5 {[%emt 0:04:37]} 13. fxe5 {[%emt 0:06:22]} dxe5 {[%emt 0:18:24]} 14. Nd5 {[%emt 0:03:49]} Bxd5 {[%emt 0:00:56]} 15. exd5 {[%emt 0:00:09]} Bd6 {[%emt 0:02:34]} 16. Qa5 {[%emt 0:04:52]} Qb7 {[%emt 0:13:51]} 17. c4 {[%emt 0:01:15]} bxc4 {[%emt 0:00:50]} 18. Bxc4 {[%emt 0:00:10]} O-O {[%emt 0:01:20]} 19. Rc1 {[%emt 0:08:09]} Rfc8 {[%emt 0:01:47]} 20. Rhd1 {[%emt 0:01:50]} Bb4 {[%emt 0:01:38]} 21. Qa4 {[%emt 0:00:20]} Nc5 {[%emt 0:09:03]} 22. Bxc5 {[%emt 0:03:27]} Bxc5 {[%emt 0:00:11]} 23. Na5 {[%emt 0:04:58]} Qb6 {[%emt 0:01:16]} 24. Nc6 {[%emt 0:03:24]} e4 {[%emt 0:03:12]} 25. a3 {[%emt 0:01:10]} Rc7 {[%emt 0:04:41]} 26. b4 {[%emt 0:09:18]} Bd6 {[%emt 0:00:12]} 27. g3 {[%emt 0:00:34]} g6 {[%emt 0:16:42]} 28. Re1 {[%emt 0:04:01]} Nd7 {[%emt 0:04:28]} 29. Ka2 {[%emt 0:01:01]} f5 {[%emt 0:04:27]} 30. Qb3 {[%emt 0:05:53]} Kh7 {[%emt 0:02:43]} 31. Qe3 {[%emt 0:01:56]} Qxe3 {[%emt 0:00:41]} 32. Rxe3 {[%emt 0:00:01]} Nb6 {[%emt 0:00:25]} 33. Kb3 {[%emt 0:04:19]} Kg7 {[%emt 0:01:23]} 34. a4 {[%emt 0:01:37]} Kf6 {[%emt 0:01:47]} 35. Re2 {[%emt 0:00:29]} Nd7 {[%emt 0:00:49]} 36. Ra2 {[%emt 0:01:04]} Rb7 {[%emt 0:00:40]} 37. Kc3 {[%emt 0:04:18]} Ne5 {[%emt 0:01:06]} 38. Rb1 {[%emt 0:03:02]} a5 {[%emt 0:01:23]} 39. b5 {[%emt 0:01:11]} Nd7 {[%emt 0:00:16]} 40. Rc1 {[%emt 0:02:55]} Be5+ {[%emt 0:01:47]} 41. Kd2 {[%emt 0:38:06]} Nc5 {[%emt 0:32:25]} 42. Ke3 {[%emt 0:04:59]} g5 {[%emt 0:00:00]} 43. Kf2 {[%emt 0:00:00]} f4 {[%emt 0:00:00]} 44. gxf4 {[%emt 0:00:00]} gxf4 {[%emt 0:00:00]} 45. Rg1 {[%emt 0:00:00]} Bd6 {[%emt 0:00:00]} 46. h4 {[%emt 0:00:00]} f3 {[%emt 0:00:00]} 47. Ke3 {[%emt 0:00:00]} Nxa4 {[%emt 0:00:00]} 48. Rxa4 {[%emt 0:00:00]} Bc5+ {[%emt 0:00:00]} 49. Nd4 {[%emt 0:00:00]} f2 {[%emt 0:00:00]} 50. Rd1 {[%emt 0:00:00]} Ke5 {[%emt 0:00:00]} 51. Bf1 {[%emt 0:00:00]} Rf7 {[%emt 0:00:00]} 52. Ke2 {[%emt 0:00:00]} Rg8 {[%emt 0:00:00]} 53. Nc6+ {[%emt 0:00:00]} Kf4 {[%emt 0:00:00]} 54. Rc4 {[%emt 0:00:00]} Bb6 {[%emt 0:00:00]} 55. d6 {[%emt 0:00:22]} Rd7 {[%emt 0:00:00]} 56. Ne7 {[%emt 0:00:48]} Rb8 {[%emt 0:00:00]} 57. Bh3 {[%emt 0:00:28]} Rdd8 {[%emt 0:00:00]} 58. Nc6 {[%emt 0:00:30]} Rbc8 {[%emt 0:00:00]} 59. Bxc8 {[%emt 0:00:13] normal} 1-0

[Event "-chT Youth Countries 2019"]
[Site "Wuerzburg"]
[Date "2019.10.03"]
[Round "3.3"]
[White "Wu, Leon"]
[Black "Richter, Nils"]
[Result "0-1"]
[ECO "B49"]
[WhiteElo "2009"]
[BlackElo "2213"]
[Annotator "NA"]
[PlyCount "111"]
[EventDate "2019.10.02"]
[EventType "team-tourn"]
[EventRounds "7"]
[EventCountry "GER"]
[SourceTitle "playchess.com"]
[Source "ChessBase"]
[SourceQuality "1"]
[WhiteTeam "Baden 2"]
[BlackTeam "Württemberg"]
[TimeControl "40/5400+30:1800+30"]

1. e4 {[%emt 0:00:00]} c5 {[%emt 0:00:00]} 2. Nf3 {[%emt 0:00:00]} e6 {[%emt 0:00:00]} 3. d4 {[%emt 0:00:00]} cxd4 {[%emt 0:00:00]} 4. Nxd4 {[%emt 0:00:00]} Nc6 {[%emt 0:00:02]} 5. Nc3 {[%emt 0:00:00]} Qc7 {[%emt 0:00:11]} 6. Be3 {[%emt 0:00:36]} a6 {[%emt 0:00:07]} 7. Be2 {[%emt 0:00:19]} Nf6 {[%emt 0:00:18]} 8. O-O {[%emt 0:00:41]} Be7 {[%emt 0:00:38]} 9. f4 {[%emt 0:00:38]} d6 {[%emt 0:00:07]} 10. a4 {[%emt 0:08:45]} O-O {[%emt 0:00:09]} 11. Nb3 {[%emt 0:02:59]} b6 {[%emt 0:10:05]} 12. Rc1 {[%emt 0:05:05]} Bb7 {[%emt 0:01:42]} 13. Qe1 {[%emt 0:00:59]} Nb8 {[%emt 0:11:34]} 14. Bf3 {[%emt 0:01:28]} Nbd7 {[%emt 0:00:32]} 15. Qg3 {[%emt 0:02:43]} Rab8 {[%emt 0:22:33]} 16. Kh1 {[%emt 0:09:40]} Kh8 {[%emt 0:04:35]} 17. Rfe1 {[%emt 0:09:57]} e5 {[%emt 0:03:52]} 18. Red1 {[%emt 0:06:32]} Bc6 {[%emt 0:02:55]} 19. f5 {[%emt 0:03:29]} Qb7 {[%emt 0:03:47]} 20. Nd2 {[%emt 0:03:36]} b5 {[%emt 0:03:22]} 21. axb5 {[%emt 0:01:35]} axb5 {[%emt 0:00:06]} 22. b4 {[%emt 0:02:20]} Ra8 {[%emt 0:04:10]} 23. Nb3 {[%emt 0:03:28]} Ra3 {[%emt 0:04:42]} 24. Na5 {[%emt 0:03:22]} Qa8 {[%emt 0:01:14]} 25. Rd3 {[%emt 0:05:49]} Rc8 {[%emt 0:05:55]} 26. h3 {[%emt 0:07:14]} Bd8 {[%emt 0:01:11]} 27. Nxc6 {[%emt 0:04:40]} Rxc6 {[%emt 0:00:13]} 28. Bd2 {[%emt 0:01:58]} Nb6 {[%emt 0:03:54]} 29. Qe1 {[%emt 0:01:26]} Qa6 {[%emt 0:00:54]} 30. Nd5 {[%emt 0:07:55]} Nfxd5 {[%emt 0:03:23]} 31. exd5 {[%emt 0:00:49]} Rc8 {[%emt 0:00:19]} 32. Be4 {[%emt 0:00:51]} Ra2 {[%emt 0:01:32]} 33. Rf3 {[%emt 0:00:45]} Bf6 {[%emt 0:03:27]} 34. g4 {[%emt 0:00:44]} h6 {[%emt 0:00:12]} 35. g5 {[%emt 0:00:56]} hxg5 {[%emt 0:00:54]} 36. Qg1 {[%emt 0:00:04]} Rc4 {[%emt 0:02:24]} 37. Bd3 {[%emt 0:01:45]} Rf4 {[%emt 0:03:00]} 38. Bxf4 {[%emt 0:00:20]} gxf4 {[%emt 0:00:33]} 39. Be4 {[%emt 0:02:48]} Nc4 {[%emt 0:00:52]} 40. Rd3 {[%emt 0:00:44]} Qa4 {[%emt 0:03:30]} 41. Qe1 {[%emt 0:05:02]} Kg8 {[%emt 0:11:16]} 42. Rb3 {[%emt 0:01:53]} Bg5 {[%emt 0:02:03]} 43. h4 {[%emt 0:02:56]} Bd8 {[%emt 0:01:22]} 44. Rh3 {[%emt 0:02:30]} Ne3 {[%emt 0:04:12]} 45. Qc3 {[%emt 0:02:56]} Nc4 {[%emt 0:03:08]} 46. Qe1 {[%emt 0:02:20]} Ne3 {[%emt 0:01:28]} 47. h5 {[%emt 0:05:49]} Qa7 {[%emt 0:02:20]} 48. Qg1 {[%emt 0:03:30]} Qd4 {[%emt 0:00:38]} 49. Bg2 {[%emt 0:05:29]} Nxf5 {[%emt 0:00:43]} 50. Qxd4 {[%emt 0:01:03]} Nxd4 {[%emt 0:00:02]} 51. Bf1 {[%emt 0:01:55]} Bg5 {[%emt 0:01:31]} 52. c3 {[%emt 0:00:30]} Ne2 {[%emt 0:02:34]} 53. Rd1 {[%emt 0:00:25]} Ng3+ {[%emt 0:00:17]} 54. Kg1 {[%emt 0:00:05]} Bd8 {[%emt 0:00:14]} 55. Bg2 {[%emt 0:01:07]} Bb6+ {[%emt 0:01:23]} 56. Kh2 {[%emt 0:00:01] normal} 0-1